Cogmind - Beta 13 @@@ ROGUE MODE // 2024.04.03 @ 15:26:32 Player: Arc Result: Destroyed by as-30831 with Assembled Maul Performance ------------- Evolutions (0) 0 Regions Visited (4) 800 Robots Destroyed (31) 155 Value Destroyed (498) 498 Prototype IDs (25) 500 Alien Tech Used (0) 0 Bonus (300) 300 TOTAL SCORE: 2253 Bonus ------- Aligned with FarCom 300 Cogmind --------- Core Integrity 0/250 Matter 300/300 Energy 100/100 System Corruption 1% Temperature Cool (53) Movement Treading (160) Location -9/Mines Parts ------- > --- POWER (1) -------- (None) > --- PROPULSION (2) --- Light Treads > --- UTILITY (2) ------ Improved Heat Sink Medium Storage Unit > --- WEAPON (2) ------- Beam Cannon > --- INVENTORY (10) --- Light Ion Engine Light Treads Light Treads Experimental Sensor Array Signal Interpreter XL Autogun Array Grenade Launcher Peak State ------------ > --- POWER ------------ Light Nuclear Core > --- PROPULSION ------- Light Treads Light Treads > --- UTILITY ---------- Improved Heat Sink Medium Storage Unit > --- WEAPON ----------- Beamcaster Beam Cannon > --- INVENTORY -------- Light Ion Engine Light Treads Light Treads Experimental Sensor Array Signal Interpreter XL Autogun Array Grenade Launcher [Rating: 20] Favorites ----------- Power Light Nuclear Core Engine Light Ion Engine Power Core Light Nuclear Core Propulsion Light Treads Treads Light Treads Utility Medium Storage Unit Device Improved Heat Sink Storage Medium Storage Unit Processor Signal Interpreter Protection Light Armor Plating Weapon Beam Cannon Energy Gun Beamcaster Energy Cannon Beam Cannon Ballistic Gun Assault Rifle Ballistic Cannon Light Cannon Build | -11 -10 -10 -10 -9 ------- Run | Yrd Mat Min Exi Min Slots Evolved . | . . . . . Power . | . . . . . Propulsion . | . . . . . Utility . | . . . . . Weapon . | . . . . . Parts Attached 28 | 6 14 5 3 . Power 2 | 1 . 1 . . Engine 1 | 1 . . . . Core 1 | . . 1 . . Reactor . | . . . . . Propulsion 4 | 2 2 . . . Treads 4 | 2 2 . . . Leg . | . . . . . Wheel . | . . . . . Hover . | . . . . . Flight . | . . . . . Utility 14 | 1 8 2 3 . Device 7 | . 2 2 3 . Storage 5 | 1 4 . . . Processor 1 | . 1 . . . Hackware . | . . . . . Protection 1 | . 1 . . . Artifact . | . . . . . Weapon 8 | 2 4 2 . . Energy Gun 3 | 1 1 1 . . Energy Cannon 2 | . 2 . . . Ballistic Gun 1 | 1 . . . . Ballistic Cannon 2 | . 1 1 . . Launcher . | . . . . . Special Weapon . | . . . . . Impact Weapon . | . . . . . Slashing Weapon . | . . . . . Piercing Weapon . | . . . . . Special Melee Weapon . | . . . . . Unidentified Prototypes 1 | . . . 1 . Parts Lost 4 | . 1 . . 3 Power 1 | . . . . 1 Propulsion 1 | . . . . 1 Utility 1 | . 1 . . . Weapon 1 | . . . . 1 Highest Loss Streak 3 | . 1 . . 3 To Critical Strikes 1 | . . . . 1 Average Slot Usage (%) 98 | . 97 100 100 97 Engine 5 | . 14 . . . Core 8 | . . 13 14 14 Treads 27 | . 28 28 28 26 Device 10 | . 5 14 14 14 Storage 14 | . 14 14 14 14 Protection 1 | . 4 . . . Energy Gun 7 | . 3 7 14 12 Energy Cannon 13 | . 7 20 14 14 Ballistic Gun 3 | . 8 . . . Ballistic Cannon 3 | . 8 . . . Naked Turns . | . . . . . Heaviest Build 25 | 12 23 24 25 24 Greatest Support 40 | 40 40 40 40 40 Greatest Overweight (x) 1 | 1 . . . . Average Overweight (x) . | . . . . . Largest Inventory Capacity 25 | 8 25 10 10 10 Average Capacity 9 | 7 9 10 10 10 Most Carried 10 | 4 10 10 10 10 Average Carried 8 | 1 8 9 9 10 Final Capacity 10 | 8 10 10 10 10 Final Carried 10 | 3 10 10 10 10 Class Distribution -------------------- 58% | Mutant 41% | Scavenger-Mutant Dominant Class ---------------- Mutant | -10/Materials Scavenger-Mutant | -10/Mines Scavenger-Mutant | -10/Exiles Scavenger-Mutant | -9/Mines Resources | -11 -10 -10 -10 -9 ----------- Run | Yrd Mat Min Exi Min Matter Collected 741 | 202 353 148 . 38 Remotely . | . . . . . Salvage Created 826 | . 372 454 . . Parts 59 | . 36 23 . . Haulers Intercepted 2 | . 2 . . . Recyclers Shooed 4 | . 2 2 . . Parts Field Recycled . | . . . . . Retrieved Matter . | . . . . . Parts Self-Destructed . | . . . . . Prevented . | . . . . . Kills | -11 -10 -10 -10 -9 ------- Run | Yrd Mat Min Exi Min Combat Hostiles Destroyed 21 | . 9 12 . . Guns 8 | . 7 1 . . Cannons 12 | . 2 10 . . Classes Destroyed 7 | . 6 1 . . Worker 2 | . 2 . . . Builder 1 | . 1 . . . Hauler 2 | . 2 . . . Recycler 2 | . . 2 . . Watcher 3 | . 3 . . . Swarmer 14 | . 6 8 . . Grunt 7 | . 3 4 . . Best Kill Streak 3 | . 3 3 . . Combat Bots Only 3 | . 3 3 . . Max Kills in Single Turn 2 | . 1 2 . . Gunslinging . | . . . . . Exploded . | . . . . . Melee . | . . . . . Uniques/NPCs Destroyed . | . . . . . Combat | -11 -10 -10 -10 -9 -------- Run | Yrd Mat Min Exi Min Hostile Shots Fired 168 | . 90 64 . 14 Missed 45 | . 24 21 . . Damage Taken 1315 | . 593 417 . 305 Core 257 | . 85 56 . 116 Absorbed by Shields . | . . . . . Core Remaining (%) 100 | 100 . . . . Volleys Fired 82 | . 45 35 . 2 Largest 2 | . 2 2 . 2 Hottest 135 | . 120 135 . 135 Shots Fired 167 | . 92 71 . 4 Gun 55 | . 45 8 . 2 Cannon 112 | . 47 63 . 2 Launcher . | . . . . . Special . | . . . . . Kinetic 70 | . 70 . . . Thermal 89 | . 14 71 . 4 Explosive . | . . . . . Electromagnetic 8 | . 8 . . . Robot Hit Streak 6 | . 6 6 . 5 Robot Miss Streak 5 | . 5 5 . . Penetration Max . | . . . . . Secondary Targets . | . . . . . Shots Hit Robots 79 | . 42 35 . 2 Core Hits 33 | . 18 15 . . Critical Kills 1 | . . 1 . . Critical Parts Destroyed . | . . . . . Critical Strikes 2 | . 1 1 . . Meltdown 1 | . . 1 . . Blast 1 | . 1 . . . Melee Attacks . | . . . . . Impact . | . . . . . Slashing . | . . . . . Piercing . | . . . . . Sneak Attacks . | . . . . . Combat Hostiles . | . . . . . Follow-up Attacks . | . . . . . Damage Inflicted 1385 | . 675 656 . 54 Guns 415 | . 290 105 . 20 Cannons 949 | . 367 548 . 34 Explosions . | . . . . . Melee . | . . . . . Ramming 21 | . 18 3 . . Kinetic 434 | . 434 . . . Thermal 862 | . 155 653 . 54 Explosive . | . . . . . Electromagnetic 68 | . 68 . . . Impact . | . . . . . Slashing . | . . . . . Piercing . | . . . . . Highest Corruption 1 | . 1 1 1 1 Average Corruption 1 | . 1 1 1 1 Corruption Purged . | . . . . . Corruption Blocked . | . . . . . Effects 23 | . 4 14 4 1 Message Errors 5 | . 1 2 1 1 Matter Fused 5 | . 1 3 1 . Heat Flow Errors 4 | . . 3 1 . Energy Discharges 2 | . . 2 . . Data Loss (minor) 2 | . . 2 . . Data Loss (major) 2 | . . 1 1 . Misfires 3 | . 2 1 . . Overload Shots . | . . . . . Overflow Damage 16 | . . 16 . . Projectiles 16 | . . 16 . . Explosions . | . . . . . Melee . | . . . . . Knockbacks 2 | . 2 . . . Impact . | . . . . . Kinetic 2 | . 2 . . . Secondary . | . . . . . Self-Inflicted Damage 23 | . 23 . . . Shots 1 | . 1 . . . Rammed 5 | . 4 1 . . Targets Rammed 7 | . 6 1 . . Kicked . | . . . . . Crushed 2 | . 2 . . . Highest Temperature 227 | . 66 222 227 91 Average Temperature 51 | . 16 69 118 62 Received Heat Transfer 185 | . 81 84 . 20 Siege Activations . | . . . . . Robots Corrupted . | . . . . . Combat Hostiles . | . . . . . Parts Fried 1 | . 1 . . . Impact Corruptions . | . . . . . Robots Melted 1 | . . 1 . . Combat Hostiles 1 | . . 1 . . Parts Melted 1 | . . 1 . . Heat Transferred 1776 | . 333 1332 . 111 Parts Sabotaged . | . . . . . Parts Stolen . | . . . . . Parts Stripped . | . . . . . Power Chain Reactions 1 | . 1 . . . Alert | -11 -10 -10 -10 -9 ------- Run | Yrd Mat Min Exi Min Peak Influence 192 | . 192 181 . . Initial 11 | . . 11 . . Average 70 | . 103 49 . . Maximum Alert Level . | . . . . . Low Security (%) 100 | 100 100 100 . 100 Level 1 . | . . . . . Level 2 . | . . . . . Level 3 . | . . . . . Level 4 . | . . . . . Level 5 . | . . . . . High Security . | . . . . . Max Security . | . . . . . Squads Dispatched 1 | . 1 . . . Investigation . | . . . . . Extermination . | . . . . . Reinforcement 1 | . 1 . . . Assault . | . . . . . Garrison . | . . . . . Intercept . | . . . . . Searches Triggered . | . . . . . Construction Impeded . | . . . . . Haulers Reinforced . | . . . . . Active Scanning Responses . | . . . . . Cargo Convoy Interrupts . | . . . . . Stealth | -11 -10 -10 -10 -9 --------- Run | Yrd Mat Min Exi Min Distress Signals 1 | . 1 . . . Communications Jammed . | . . . . . Distress Signals . | . . . . . Times Spotted 43 | . 23 12 . 8 Peak Tracking Total 7 | . 4 3 . 7 Tactical Retreats 2 | . 2 . . . Traps | -11 -10 -10 -10 -9 ------- Run | Yrd Mat Min Exi Min Traps Triggered 1 | . 1 . . . Indirectly . | . . . . . Trap Hack Attempts . | . . . . . Triggered . | . . . . . Disarmed . | . . . . . Reprogrammed . | . . . . . Reused . | . . . . . Traps Extracted . | . . . . . Installed . | . . . . . Triggered 1 | . 1 . . . Machines | -11 -10 -10 -10 -9 ---------- Run | Yrd Mat Min Exi Min Machines Disabled 1 | . 1 . . . Max in Single Turn 1 | . 1 . . . Machines Repaired . | . . . . . Machines Dismantled . | . . . . . Machines Sabotaged . | . . . . . Overloaded Fab Kills . | . . . . . Hacking | -11 -10 -10 -10 -9 --------- Run | Yrd Mat Min Exi Min Machines Accessed 9 | . 6 . 3 . Terminals 5 | . 5 . . . Fabricators . | . . . . . Repair Stations . | . . . . . Recycling Units 1 | . 1 . . . Scanalyzers . | . . . . . Garrison Access . | . . . . . Total Hacks 36 | . 18 . 18 . Successful 25 | . 7 . 18 . Failed 11 | . 11 . . . Catastrophic 1 | . 1 . . . Database Lockouts . | . . . . . Manual 2 | . . . 2 . Terminals 13 | . 13 . . . Fabricators . | . . . . . Repair Stations . | . . . . . Recycling Units 5 | . 5 . . . Scanalyzers . | . . . . . Garrison Access . | . . . . . Terminal Hacks 23 | . 5 . 18 . Record 17 | . . . 17 . Prototype ID Bank 1 | . 1 . . . Locate Traps 3 | . 3 . . . Surveillance Status 1 | . 1 . . . Derelict Proto ID Bank 1 | . . . 1 . Fabricator Hacks . | . . . . . Repair Station Hacks . | . . . . . Recycling Unit Hacks 2 | . 2 . . . Report Inventory 1 | . 1 . . . Retrieve Components 1 | . 1 . . . Scanalyzer . | . . . . . Garrison Access Hacks . | . . . . . Unauthorized Hacks . | . . . . . Terminals . | . . . . . Fabricators . | . . . . . Repair Stations . | . . . . . Recycling Units . | . . . . . Scanalyzers . | . . . . . Garrison Access . | . . . . . Data Cores Recovered . | . . . . . Used . | . . . . . Hacking Detections 6 | . 6 . . . Full Trace Events 1 | . 1 . . . Feedback Events . | . . . . . Feedback Blocked . | . . . . . Robot Schematics Acquired . | . . . . . Robots Built . | . . . . . Authchips . | . . . . . Time . | . . . . . Total Robot Build Rating . | . . . . . Part Schematics Acquired . | . . . . . Parts Built . | . . . . . Authchips . | . . . . . Time . | . . . . . Total Part Build Rating . | . . . . . Parts Repaired . | . . . . . Time . | . . . . . Parts Recycled . | . . . . . Recycled Matter . | . . . . . Retrieved Matter . | . . . . . Retrieved Components 3 | . 3 . . . Parts Scanalyzed . | . . . . . Part Schematics Acquired . | . . . . . Parts Damaged . | . . . . . Bothacking | -11 -10 -10 -10 -9 ------------ Run | Yrd Mat Min Exi Min Used RIF Installer . | . . . . . Robots Hacked . | . . . . . Non-combat . | . . . . . Combat . | . . . . . Robot Hacks Applied . | . . . . . Relay Couplers Released . | . . . . . Fabnet Peak Effective % . | . . . . . Robots Rewired . | . . . . . Allies Hacked . | . . . . . Hacks Repelled . | . . . . . Allies | -11 -10 -10 -10 -9 -------- Run | Yrd Mat Min Exi Min Total Allies 2 | . . . . 2 Largest Group 2 | . . . . 2 Highest-Rated Group 45 | . . . . 45 Highest-Rated Ally 31 | . . . . 31 Total Orders . | . . . . . Ally Attacks . | . . . . . Total Damage . | . . . . . Kills . | . . . . . Allies Corrupted . | . . . . . Allies Melted . | . . . . . Intel | -11 -10 -10 -10 -9 ------- Run | Yrd Mat Min Exi Min Robot Analysis Total . | . . . . . Derelict Logs Recovered 1 | . . 1 . . Drone Launches . | . . . . . Drone Recoveries . | . . . . . Exploration | -11 -10 -10 -10 -9 ------------- Run | Yrd Mat Min Exi Min Turns Passed 3141 | 82 1207 1286 459 107 Spaces Moved 1750 | 51 630 725 281 63 Core 14 | 14 . . . . Treads 1736 | 37 630 725 281 63 Legs . | . . . . . Wheels . | . . . . . Hover . | . . . . . Flight . | . . . . . Fastest Speed 50 | 50 160 160 160 160 Average Speed 159 | 133 160 160 160 160 Slowest Speed 160 | 160 160 160 160 160 Overloaded Moves . | . . . . . Propulsion Burnouts . | . . . . . Robots Hopped . | . . . . . Cave-ins Triggered . | . . . . . Exploration Rate (%) 55 | 4 89 95 63 26 Regions Visited 4 Branch Regions 3 Pre-discovered Areas 1 | . . 1 . . Known Exits Taken 1 | . 1 . . . Unknown Exits Taken 3 | 1 . 1 1 . Scrap Searched 1 | . . 1 . . Spaces Dug . | . . . . . Terrain Destroyed 6 | . 6 . . . Melee . | . . . . . Projectile . | . . . . . AOE 6 | . 6 . . . Terrain Rammed . | . . . . . Walls Destroyed . | . . . . . Machines Disabled . | . . . . . Actions | -11 -10 -10 -10 -9 --------- Run | Yrd Mat Min Exi Min Total 1942 | 65 738 781 293 65 Wait 16 | . 11 5 . . Move 1746 | 50 629 724 280 63 Hop . | . . . . . Pick Up 38 | 9 20 6 3 . Fast Attach . | . . . . . Attach 11 | 6 4 . 1 . Detach 3 | . 2 . 1 . Swap 17 | . 10 5 2 . Drop 22 | . 11 5 6 . Fire 82 | . 45 35 . 2 Melee . | . . . . . Ram . | . . . . . Kick . | . . . . . Crush 7 | . 6 1 . . Escape Stasis . | . . . . . Rewire . | . . . . . Trap . | . . . . . Miscellaneous . | . . . . . Route ------- -11/Scrapyard -10/Materials (discovered 5 exits: *Mat x3 / *Min x2) -10/Mines (discovered 3 exits: *Mat x2 / *Exi) -10/Exiles (discovered 2 exits: [*Min x2]) -9/Mines History --------- Turn | Location | Event 24 | -11/Scrapyard | Discovered new exit (range 15) 83 | -11/Scrapyard | Entered Materials 311 | -10/Materials | Build established: Mutant 313 | -10/Materials | Discovered new exit (range 7) 725 | -10/Materials | Discovered new exit (range 15) 733 | -10/Materials | Discovered new exit (range 13) 917 | -10/Materials | Discovered new exit (range 16) 1108 | -10/Materials | Discovered new exit (range 16) 1173 | -10/Materials | Identified exit to Materials 1288 | -10/Materials | Identified exit to Mines 1290 | -10/Materials | Entered Mines 1303 | -10/Mines | Met a Derelict bent on vengeance 1374 | -10/Mines | Core integrity fell below 50% 1574 | -10/Mines | Deemed a non-threat by the Exiles lab entrance 1574 | -10/Mines | Discovered new exit (range 5) 1730 | -10/Mines | Discovered exit to Materials (range 7) 2066 | -10/Mines | Learned location of Storage (-9) 2138 | -10/Mines | Build established: Scavenger-Mutant 2178 | -10/Mines | Discovered exit to Materials (range 11) 2213 | -10/Mines | Found a damaged Exp. Sensor Array with a note attached 2216 | -10/Mines | Found Prototype Device 2576 | -10/Mines | Entered Exiles 2604 | -10/Exiles | Discovered new exit (range 15) 2656 | -10/Exiles | Met 8R-AWN 2685 | -10/Exiles | Met EX-HEX 2741 | -10/Exiles | Met EX-BIN 2765 | -10/Exiles | Aligned with FarCom system 2767 | -10/Exiles | Given EX-Vault access code 2829 | -10/Exiles | Opened EX-Vault 2842 | -10/Exiles | Found Prototype Ballistic Cannon 2855 | -10/Exiles | Found Prototype Device 2856 | -10/Exiles | Identified Skeleton Box 2868 | -10/Exiles | Found XL Autogun Array 2905 | -10/Exiles | Exiles lab attacked by MAIN.C 3019 | -10/Exiles | Discovered new exit (range 12) 3035 | -10/Exiles | Left Exiles lab with XL Autogun Array 3035 | -10/Exiles | Entered Mines 3113 | -9/Mines | Assembled infested the area 3141 | -9/Mines | Core integrity fell below 20% 3142 | -9/Mines | Destroyed by as-30831 with Assembled Maul Last Messages --------------- /GPO#MDCCB&UCR8JVPM<|4EUB ALERT: Infestation in the mines, dispatching Demolisher response squad. as-09415 sneak attacks. K-01 Serf system corrupted by crushing effect. K-01 Serf knocked back. R-06 Scavenger destroyed. Acquired 38 matter. Lgt. Treads destroyed. as-77972 destroyed. as-60486 destroyed. Critical hit (Destroy). Beamcaster destroyed. A pair of derelicts emerge from the shadows: "We're, um, lost. You wouldn't happen to know the way out of here, would you?" The unstable cave ceiling collapses. Lgt. Nuclear Core destroyed. as-77561 destroyed. as-37467 destroyed. Map ----- +----------------------------------------------------+ | ???????????????????????????????????????????????# | | ?????????????????????????????????????##????????# | | ????????????????????????????????????? ????????# | | ?????????????????????????????????????# ????????# | | ?????????????????????????????????????# #???????# | | ?????????????????????????? ?????????## ###????# | | ??????????????????????????""????????? ##???# | | ?????????????????????? """ ???????? #???# | | ?????????????????????? """ ????????? #???# | | ???????????????????????# ???????? ##??# | | ????????????????????????# ???????# ##?# | | ???????????????????????## ##?????# ### | | ???????????????????????# #????# ## | | ???????????????????????# ???## ## | | ????????????????????????# #### #?# | | ???????????????????????????# ## #??# | | ????????????????????????????# d #??# | | ????????????????#????#??????##### ## ##### | | ????????????????# ??## ?#???????#### ### ### | | ????????????????# ## ? ##????????# ##?# # | | ????????????????# z ## ###??????# #?## | | ?????????????????? ##?????# #?# ## | | ????????????????# ?g ####### #?# #### | | ????????????????# # zd "% #?# #???# | | ????????????????????# % #########?# ##???? | | ????????????????????## a@ ##?????????# ##????? | | ?????????????? t == a #?????????# ##?????? | | ?????????? %*%% ???????###???????? | | ??????????? ##### ##% # #????????????????? | | ???????????????????# ?# # ! ##????????????????? | | ???????????????????#??# = ##?????????????????? | | ??????????????????????# #??????????????????? | | ??????????????????????#### ##??????????????????? | | ?????????????????????????? #???????????????????? | | ??????????????????????????? #???????????????????? | | ??????????????????????????? ! ???????????????????? | | ??????????????????????????? ???????????????????? | | ??????????????????????????? ##??????????????????? | | ??????????????????????????? ##???????????????????? | | ????????????????????????????#????????????????????? | | ?????????????????????????????????????????????????? | | ?????????????????????????????????????????????????? | | ?????????????????????????????????????????????????? | | ?????????????????????????????????????????????????? | | ?????????????????????????????????????????????????? | | ?????????????????????????????????????????????????? | | ?????????????????????????????????????????????????? | | ?????????????????????????????????????????????????? | | ?????????????????????????????????????????????????? | | ?????????????????????????????????????????????????? | +----------------------------------------------------+ Best States ------------- Heat Dissipation 39 Energy Generation 14 Energy Capacity 160 Matter Stores 300 Matter Capacity 300 Sight Range 16 Terrain Scan Density 10 ECM Strength 1 Armor Coverage 150 Evasion (%) 40 Recoil Reduction 2 Item Schematics ----------------- None Robot Schematics ------------------ None Fabricated ------------ Nothing Alien Tech Used ----------------- None Achievements -------------- Tourist Challenges ------------ None Game ------ Seed VortexDisposablePlating Manual? 0 Play Time 00:41:25 Cumulative 5.6 hours Start 2024.04.03 @ 14:41:12 End 2024.04.03 @ 15:26:32 Sessions 1 Manual Loads 0 Difficulty Rogue Special Mode None Game No. 6 Rogue 6 Adventurer 0 Explorer 0 Win Type - Total 0 Types 0/0/0/0/0/0/0/0/0 Lore% 9 Gallery% 7 Achievement% 10 Wizard Run 0 Options --------- Layout 1 ASCII 0 Keyboard 0 Movement Mouse Keybinds 0 Fullscreen 1 Font 16/SmallcapsGlow Map View 55x38 Zoom Use 0% Tactical HUD 0 Map Filters NONE Filters NONE Steam 1 RUN: b6b0dc4b-0d90-4051-a883-fff1d7b0e236